fUST/lending_fUST_20260506
["ID","MTS","AMOUNT","RATE_DAILY","PERIOD"]
[421665854,1778035843000,-500.0,0.00012876,2]
[421665828,1778035843000,-500.0,0.00012876,2]
[421665856,1778035843000,-500.0,0.00012876,2]
[421665857,1778035843000,-500.0,0.00012876,2]
[421665860,1778035843000,-501.61315666,0.00012876,2]
[421665845,1778035843000,-500.0,0.00012876,2]
[421665846,1778035843000,-737.94,0.00012876,2]
[421665848,1778035843000,-500.0,0.00012876,2]
[421665861,1778035843000,-516.99,0.00012876,2]
[421665864,1778035843000,-500.0,0.00012876,2]
[421665867,1778035843000,-500.0,0.00012876,2]
[421665870,1778035843000,-500.0,0.00012876,2]
[421665874,1778035843000,-500.0,0.00012876,2]
[421665872,1778035843000,-500.0,0.00012876,2]
[421665866,1778035843000,-500.0,0.00012876,2]
[421665878,1778035843000,-1293.46,0.00012876,2]
[421665842,1778035843000,-500.0,0.00012876,2]
[421665826,1778035843000,-500.0,0.00012876,2]
[421665876,1778035843000,-500.0,0.00012876,2]
[421665814,1778035843000,-1019.69,0.00012857,2]
[421665816,1778035843000,-578.20924308,0.00012862,2]
[421665763,1778035843000,-500.0,0.00012602,2]
[421665752,1778035843000,-1428.52,0.00012602,2]
[421665765,1778035843000,-1528.26,0.00012602,2]
[421665769,1778035843000,-927.9,0.00012602,2]
[421665771,1778035843000,-500.0,0.00012602,2]
[421665767,1778035843000,-655.31,0.00012602,2]
[421665773,1778035843000,-1387.91,0.00012602,2]
[421665782,1778035843000,-500.0,0.00012602,2]
[421665784,1778035843000,-500.0,0.00012602,2]
[421665776,1778035843000,-1301.51,0.00012602,2]
[421665780,1778035843000,-500.0,0.00012602,2]
[421665774,1778035843000,-2386.82,0.00012602,2]
[421665778,1778035843000,-500.0,0.00012602,2]
[421665750,1778035843000,-1600.96,0.00012602,2]
[421665787,1778035843000,-3115.11,0.00012602,2]
[421665786,1778035843000,-5877.6,0.00012602,2]
[421665810,1778035843000,-557.5788265,0.00012807,2]
[421665804,1778035843000,-537.6845,0.00012752,2]
[421665789,1778035843000,-500.0,0.00012602,2]
[421665797,1778035843000,-200.79099983,0.0001269,2]
[421665791,1778035843000,-5239.35,0.00012602,2]
[421665793,1778035843000,-2715.88,0.00012602,2]
[421665799,1778035843000,-163.09729822,0.00012752,2]
[421665801,1778035843000,-448.96534093,0.00012752,2]
[421665806,1778035843000,-543.24903898,0.00012752,2]
[421665802,1778035843000,-151.86383229,0.00012752,2]
[421665812,1778035843000,-310.48253798,0.00012807,2]
[421665808,1778035843000,-1957.856,0.00012752,2]
[421665795,1778035843000,-200.0,0.0001269,2]
[421665942,1778035844000,-500.0,0.00012876,2]
[421665944,1778035844000,-688.64,0.00012876,2]
[421665946,1778035844000,-500.0,0.00012876,2]
[421665950,1778035844000,-500.0,0.00012876,2]
[421665948,1778035844000,-500.0,0.00012876,2]
[421665957,1778035844000,-500.0,0.00012876,2]
[421665961,1778035844000,-500.0,0.00012876,2]
[421665952,1778035844000,-523.02,0.00012876,2]
[421665959,1778035844000,-500.0,0.00012876,2]
[421665955,1778035844000,-1429.2,0.00012876,2]
[421665954,1778035844000,-500.0,0.00012876,2]
[421665990,1778035844000,-500.0,0.00012876,2]
[421665965,1778035844000,-501.48521307,0.00012876,2]
[421665963,1778035844000,-500.0,0.00012876,2]
[421665970,1778035844000,-2815.78,0.00012876,2]
[421665968,1778035844000,-597.04,0.00012876,2]
[421665980,1778035844000,-503.28400483,0.00012876,2]
[421665936,1778035844000,-500.0,0.00012876,2]
[421665976,1778035844000,-1490.19,0.00012876,2]
[421665974,1778035844000,-500.0,0.00012876,2]
[421665985,1778035844000,-1550.39,0.00012876,2]
[421665987,1778035844000,-500.0,0.00012876,2]
[421665983,1778035844000,-1445.21,0.00012876,2]
[421665982,1778035844000,-1696.49,0.00012876,2]
[421665978,1778035844000,-500.0,0.00012876,2]
[421665967,1778035844000,-500.0,0.00012876,2]
[421665940,1778035844000,-1599.13,0.00012876,2]
[421665916,1778035844000,-500.0,0.00012876,2]
[421665922,1778035844000,-500.0,0.00012876,2]
[421665989,1778035844000,-500.0,0.00012876,2]
[421665886,1778035844000,-500.0,0.00012876,2]
[421665884,1778035844000,-500.0,0.00012876,2]
[421665880,1778035844000,-500.0,0.00012876,2]
[421665881,1778035844000,-688.3,0.00012876,2]
[421665889,1778035844000,-516.44361802,0.00012876,2]
[421665888,1778035844000,-500.0,0.00012876,2]
[421665901,1778035844000,-653.91,0.00012876,2]
[421665904,1778035844000,-500.0,0.00012876,2]
[421665906,1778035844000,-500.0,0.00012876,2]
[421665893,1778035844000,-553.93,0.00012876,2]
[421665891,1778035844000,-1509.19,0.00012876,2]
[421665938,1778035844000,-500.0,0.00012876,2]
[421665908,1778035844000,-500.0,0.00012876,2]
[421665910,1778035844000,-754.07,0.00012876,2]
[421665912,1778035844000,-500.0,0.00012876,2]
[421665914,1778035844000,-500.0,0.00012876,2]
[421665897,1778035844000,-500.0,0.00012876,2]
[421665928,1778035844000,-500.0,0.00012876,2]
[421665927,1778035844000,-168.36733979,0.00012876,2]
[421665918,1778035844000,-606.18,0.00012876,2]
[421665933,1778035844000,-718.39,0.00012876,2]
[421665931,1778035844000,-1592.38,0.00012876,2]
[421665935,1778035844000,-962.6,0.00012876,2]
[421665924,1778035844000,-500.0,0.00012876,2]
[421665920,1778035844000,-501.87410935,0.00012876,2]
[421665900,1778035844000,-500.0,0.00012876,2]
[421665895,1778035844000,-500.0,0.00012876,2]
[421665972,1778035844000,-1041.57,0.00012876,2]
[421665992,1778035844000,-500.0,0.00012876,2]
[421666069,1778035844000,-24724.9,0.00012876,2]
[421666060,1778035844000,-500.0,0.00012876,2]
[421666062,1778035844000,-655.58,0.00012876,2]
[421666075,1778035844000,-2624.98,0.00012876,2]
[421666071,1778035844000,-998.3,0.00012876,2]
[421666081,1778035844000,-4934.05,0.00012876,2]
[421666077,1778035844000,-500.99700274,0.00012876,2]
[421666073,1778035844000,-500.0,0.00012876,2]
[421666079,1778035844000,-1169.05,0.00012876,2]
[421666095,1778035844000,-1600.96,0.00012876,2]
[421666097,1778035844000,-1428.52,0.00012876,2]
[421666083,1778035844000,-1095.43,0.00012876,2]
[421666064,1778035844000,-645.67,0.00012876,2]
[421666101,1778035844000,-500.0,0.00012876,2]
[421666086,1778035844000,-500.0,0.00012876,2]
[421666094,1778035844000,-2183.28,0.00012876,2]
[421666090,1778035844000,-500.0,0.00012876,2]
[421666104,1778035844000,-734.16,0.00012876,2]
[421666106,1778035844000,-3234.18,0.00012876,2]
[421666092,1778035844000,-500.0,0.00012876,2]
[421666108,1778035844000,-500.0,0.00012876,2]
[421666112,1778035844000,-655.31,0.00012876,2]
[421666114,1778035844000,-927.9,0.00012876,2]
[421666110,1778035844000,-1528.26,0.00012876,2]
[421666116,1778035844000,-500.0,0.00012876,2]
[421666003,1778035844000,-518.55,0.00012876,2]
[421666099,1778035844000,-500.0,0.00012876,2]
[421666065,1778035844000,-500.0,0.00012876,2]
[421666088,1778035844000,-1739.53,0.00012876,2]
[421666058,1778035844000,-500.0,0.00012876,2]
[421665994,1778035844000,-501.61451429,0.00012876,2]
[421666067,1778035844000,-1683.76,0.00012876,2]
[421666005,1778035844000,-1343.2,0.00012876,2]
[421665996,1778035844000,-946.28,0.00012876,2]
[421665998,1778035844000,-500.0,0.00012876,2]
[421666010,1778035844000,-1546.86,0.00012876,2]
[421666007,1778035844000,-501.65660157,0.00012876,2]
[421666000,1778035844000,-500.0,0.00012876,2]
[421666009,1778035844000,-1868.57,0.00012876,2]
[421666002,1778035844000,-500.0,0.00012876,2]
[421666016,1778035844000,-500.0,0.00012876,2]
[421666014,1778035844000,-500.0,0.00012876,2]
[421666018,1778035844000,-500.0,0.00012876,2]
[421666012,1778035844000,-500.0,0.00012876,2]
[421666047,1778035844000,-500.0,0.00012876,2]
[421666055,1778035844000,-500.0,0.00012876,2]
[421666020,1778035844000,-1637.63,0.00012876,2]
[421666049,1778035844000,-3688.75,0.00012876,2]
[421666051,1778035844000,-500.0,0.00012876,2]
[421666041,1778035844000,-1161.05,0.00012876,2]
[421666053,1778035844000,-715.48,0.00012876,2]
[421666043,1778035844000,-1277.08,0.00012876,2]
[421666028,1778035844000,-922.42,0.00012876,2]
[421666026,1778035844000,-5044.4,0.00012876,2]
[421666024,1778035844000,-4242.9,0.00012876,2]
[421666022,1778035844000,-509.82,0.00012876,2]
[421666045,1778035844000,-4630.43,0.00012876,2]
[421666202,1778035845000,-311.68987643,0.0001315,2]
[421666200,1778035845000,-500.0,0.0001315,2]
[421666188,1778035845000,-500.0,0.0001315,2]
[421666186,1778035845000,-737.94,0.0001315,2]
[421666198,1778035845000,-516.99,0.0001315,2]
[421666190,1778035845000,-892.83,0.0001315,2]
[421666184,1778035845000,-604.58713677,0.0001315,2]
[421666196,1778035845000,-500.0,0.0001315,2]
[421666206,1778035845000,-500.0,0.0001315,2]
[421666207,1778035845000,-500.0,0.0001315,2]
[421666181,1778035845000,-500.0,0.0001315,2]
[421666204,1778035845000,-500.0,0.0001315,2]
[421666192,1778035845000,-500.0,0.0001315,2]
[421666210,1778035845000,-500.0,0.0001315,2]
[421666228,1778035845000,-500.0,0.0001315,2]
[421666212,1778035845000,-500.0,0.0001315,2]
[421666215,1778035845000,-500.0,0.0001315,2]
[421666223,1778035845000,-500.0,0.0001315,2]
[421666211,1778035845000,-1293.46,0.0001315,2]
[421666213,1778035845000,-688.3,0.0001315,2]
[421666221,1778035845000,-553.93,0.0001315,2]
[421666214,1778035845000,-500.0,0.0001315,2]
[421666217,1778035845000,-500.0,0.0001315,2]
[421666219,1778035845000,-1509.19,0.0001315,2]
[421666225,1778035845000,-538.0139603,0.0001315,2]
[421666227,1778035845000,-653.91,0.0001315,2]
[421666236,1778035845000,-500.0,0.0001315,2]
[421666176,1778035845000,-500.0,0.0001315,2]
[421666209,1778035845000,-500.0,0.0001315,2]
[421666178,1778035845000,-565.77,0.0001315,2]
[421666122,1778035845000,-1301.51,0.00012876,2]
[421666169,1778035845000,-232.49970762,0.0001315,2]
[421666232,1778035845000,-500.0,0.0001315,2]
[421666118,1778035845000,-1387.91,0.00012876,2]
[421666126,1778035845000,-500.0,0.00012876,2]
[421666124,1778035845000,-500.0,0.00012876,2]
[421666120,1778035845000,-2386.82,0.00012876,2]
[421666128,1778035845000,-500.0,0.00012876,2]
[421666132,1778035845000,-5877.6,0.00012876,2]
[421666130,1778035845000,-500.0,0.00012876,2]
[421666134,1778035845000,-3115.11,0.00012876,2]
[421666139,1778035845000,-2715.88,0.00012876,2]
[421666137,1778035845000,-5239.35,0.00012876,2]
[421666141,1778035845000,-160.91180963,0.0001288,5]
[421666143,1778035845000,-832.0,0.00012893,2]
[421666174,1778035845000,-500.0,0.0001315,2]
[421666136,1778035845000,-500.0,0.00012876,2]
[421666151,1778035845000,-9032.35808602,0.000129,2]
[421666145,1778035845000,-235.649,0.00012893,2]
[421666153,1778035845000,-212.0,0.00012904,3]
[421666157,1778035845000,-600.0,0.00012978,2]
[421666149,1778035845000,-9032.35808607,0.000129,2]
[421666155,1778035845000,-748.39132908,0.00012917,2]
[421666159,1778035845000,-1000.0,0.00013,2]
[421666171,1778035845000,-500.0,0.0001315,2]
[421666167,1778035845000,-1936.055,0.0001315,2]
[421666163,1778035845000,-659.19,0.0001315,2]
[421666179,1778035845000,-500.0,0.0001315,2]
[421666165,1778035845000,-500.0,0.0001315,2]
[421666161,1778035845000,-500.0,0.0001315,2]
[421666147,1778035845000,-11245.0,0.000129,7]
[421666234,1778035845000,-754.07,0.0001315,2]
[421666194,1778035845000,-500.0,0.0001315,2]
[421666244,1778035845000,-500.0,0.0001315,2]
[421666302,1778035845000,-500.0,0.0001315,2]
[421666305,1778035845000,-946.28,0.0001315,2]
[421666304,1778035845000,-500.0,0.0001315,2]
[421666307,1778035845000,-500.0,0.0001315,2]
[421666309,1778035845000,-500.0,0.0001315,2]
[421666311,1778035845000,-500.0,0.0001315,2]
[421666315,1778035845000,-1343.2,0.0001315,2]
[421666313,1778035845000,-518.55,0.0001315,2]
[421666319,1778035845000,-1546.86,0.0001315,2]
[421666323,1778035845000,-500.0,0.0001315,2]
[421666321,1778035845000,-500.0,0.0001315,2]
[421666327,1778035845000,-1637.63,0.0001315,2]
[421666325,1778035845000,-500.0,0.0001315,2]
[421666294,1778035845000,-1445.21,0.0001315,2]
[421666329,1778035845000,-509.82,0.0001315,2]
[421666338,1778035845000,-1277.08,0.0001315,2]
[421666340,1778035845000,-4630.43,0.0001315,2]
[421666331,1778035845000,-4242.9,0.0001315,2]
[421666337,1778035845000,-1161.05,0.0001315,2]
[421666334,1778035845000,-922.42,0.0001315,2]
[421666347,1778035845000,-715.48,0.0001315,2]
[421666343,1778035845000,-3688.75,0.0001315,2]
[421666352,1778035845000,-500.0,0.0001315,2]
[421666345,1778035845000,-500.0,0.0001315,2]
[421666350,1778035845000,-500.0,0.0001315,2]
[421666349,1778035845000,-500.0,0.0001315,2]
[421666354,1778035845000,-655.58,0.0001315,2]
[421666230,1778035845000,-500.0,0.0001315,2]
[421666332,1778035845000,-5044.4,0.0001315,2]
[421666300,1778035845000,-500.0,0.0001315,2]
[421666317,1778035845000,-1868.57,0.0001315,2]
[421666285,1778035845000,-1041.57,0.0001315,2]
[421666242,1778035845000,-606.18,0.0001315,2]
[421666240,1778035845000,-500.0,0.0001315,2]
[421666246,1778035845000,-500.0,0.0001315,2]
[421666238,1778035845000,-500.0,0.0001315,2]
[421666248,1778035845000,-1592.38,0.0001315,2]
[421666291,1778035845000,-500.0,0.0001315,2]
[421666254,1778035845000,-500.0,0.0001315,2]
[421666252,1778035845000,-962.6,0.0001315,2]
[421666267,1778035845000,-500.0,0.0001315,2]
[421666270,1778035845000,-500.0,0.0001315,2]
[421666268,1778035845000,-523.02,0.0001315,2]
[421666256,1778035845000,-500.0,0.0001315,2]
[421666272,1778035845000,-1429.2,0.0001315,2]
[421666274,1778035845000,-500.0,0.0001315,2]
[421666263,1778035845000,-688.64,0.0001315,2]
[421666250,1778035845000,-718.39,0.0001315,2]
[421666258,1778035845000,-1599.13,0.0001315,2]
[421666260,1778035845000,-500.0,0.0001315,2]
[421666287,1778035845000,-500.0,0.0001315,2]
[421666289,1778035845000,-1490.19,0.0001315,2]
[421666292,1778035845000,-1696.49,0.0001315,2]
[421666298,1778035845000,-500.0,0.0001315,2]
[421666283,1778035845000,-2815.78,0.0001315,2]
[421666296,1778035845000,-1550.39,0.0001315,2]
[421666280,1778035845000,-500.0,0.0001315,2]
[421666276,1778035845000,-500.0,0.0001315,2]
[421666356,1778035845000,-645.67,0.0001315,2]
[421666265,1778035845000,-500.0,0.0001315,2]
[421666278,1778035845000,-500.0,0.0001315,2]
[421666281,1778035845000,-597.04,0.0001315,2]
[421666390,1778035846000,-500.0,0.0001315,2]
[421666379,1778035846000,-500.0,0.0001315,2]
[421666396,1778035846000,-500.0,0.0001315,2]
[421666382,1778035846000,-2183.28,0.0001315,2]
[421666394,1778035846000,-3234.18,0.0001315,2]
[421666392,1778035846000,-734.16,0.0001315,2]
[421666381,1778035846000,-500.0,0.0001315,2]
[421666377,1778035846000,-1739.53,0.0001315,2]
[421666375,1778035846000,-500.0,0.0001315,2]
[421666371,1778035846000,-4934.05,0.0001315,2]
[421666373,1778035846000,-1095.43,0.0001315,2]
[421666362,1778035846000,-24724.9,0.0001315,2]
[421666360,1778035846000,-1683.76,0.0001315,2]
[421666369,1778035846000,-1169.05,0.0001315,2]
[421666358,1778035846000,-500.0,0.0001315,2]
[421666367,1778035846000,-2624.98,0.0001315,2]
[421666365,1778035846000,-500.0,0.0001315,2]
[421666386,1778035846000,-1428.52,0.0001315,2]
[421666363,1778035846000,-998.3,0.0001315,2]
[421666398,1778035846000,-1528.26,0.0001315,2]
[421666423,1778035846000,-500.0,0.0001315,2]
[421666388,1778035846000,-500.0,0.0001315,2]
[421666384,1778035846000,-1600.96,0.0001315,2]
[421666522,1778035846000,-2793.02341524,0.0001341,2]
[421666490,1778035846000,-399.385,0.0001341,2]
[421666444,1778035846000,-2715.88,0.0001315,2]
[421666450,1778035846000,-5839.94967078,0.0001341,2]
[421666446,1778035846000,-1019.69,0.00013286,2]
[421666448,1778035846000,-164.0287,0.00013287,2]
[421666440,1778035846000,-500.0,0.0001315,2]
[421666438,1778035846000,-3115.11,0.0001315,2]
[421666524,1778035846000,-1633.37621561,0.00013424,2]
[421666425,1778035846000,-1387.91,0.0001315,2]
[421666436,1778035846000,-5877.6,0.0001315,2]
[421666421,1778035846000,-927.9,0.0001315,2]
[421666419,1778035846000,-655.31,0.0001315,2]
[421666433,1778035846000,-500.0,0.0001315,2]
[421666429,1778035846000,-1301.51,0.0001315,2]
[421666431,1778035846000,-500.0,0.0001315,2]
[421666427,1778035846000,-2386.82,0.0001315,2]
[421666442,1778035846000,-5239.35,0.0001315,2]
[421666584,1778035847000,-500.0,0.00013424,2]
[421666586,1778035847000,-500.0,0.00013424,2]
[421666576,1778035847000,-500.0,0.00013424,2]
[421666573,1778035847000,-500.0,0.00013424,2]
[421666564,1778035847000,-500.0,0.00013424,2]
[421666572,1778035847000,-1293.46,0.00013424,2]
[421666574,1778035847000,-688.3,0.00013424,2]
[421666588,1778035847000,-500.0,0.00013424,2]
[421666579,1778035847000,-553.93,0.00013424,2]
[421666592,1778035847000,-500.0,0.00013424,2]
[421666590,1778035847000,-754.07,0.00013424,2]
[421666594,1778035847000,-500.0,0.00013424,2]
[421666577,1778035847000,-500.0,0.00013424,2]
[421666581,1778035847000,-500.0,0.00013424,2]
[421666578,1778035847000,-1509.19,0.00013424,2]
[421666583,1778035847000,-653.91,0.00013424,2]
[421666568,1778035847000,-241.09069562,0.00013424,2]
[421666575,1778035847000,-500.0,0.00013424,2]
[421666566,1778035847000,-500.0,0.00013424,2]
[421666549,1778035847000,-892.83,0.00013424,2]
[421666552,1778035847000,-500.0,0.00013424,2]
[421666609,1778035847000,-138.58391857,0.00013424,2]
[421666526,1778035847000,-500.0,0.00013424,2]
[421666537,1778035847000,-500.0,0.00013424,2]
[421666541,1778035847000,-500.0,0.00013424,2]
[421666539,1778035847000,-565.77,0.00013424,2]
[421666543,1778035847000,-500.0,0.00013424,2]
[421666547,1778035847000,-500.0,0.00013424,2]
[421666545,1778035847000,-737.94,0.00013424,2]
[421666570,1778035847000,-500.0,0.00013424,2]
[421666533,1778035847000,-500.0,0.00013424,2]
[421666535,1778035847000,-422.92792096,0.00013424,2]
[421666531,1778035847000,-1936.055,0.00013424,2]
[421666530,1778035847000,-500.0,0.00013424,2]
[421666554,1778035847000,-500.0,0.00013424,2]
[421666556,1778035847000,-500.0,0.00013424,2]
[421666557,1778035847000,-516.99,0.00013424,2]
[421666561,1778035847000,-500.0,0.00013424,2]
[421666560,1778035847000,-518.879108,0.00013424,2]
[421666528,1778035847000,-659.19,0.00013424,2]
[421666607,1778035847000,-1453.79608143,0.00013424,2]
[421666673,1778035847000,-500.0,0.00013424,2]
[421666613,1778035847000,-962.6,0.00013424,2]
[421666655,1778035847000,-573.82624446,0.00013424,2]
[421666661,1778035847000,-500.0,0.00013424,2]
[421666659,1778035847000,-1041.57,0.00013424,2]
[421666676,1778035847000,-500.0,0.00013424,2]
[421666663,1778035847000,-1490.19,0.00013424,2]
[421666677,1778035847000,-500.0,0.00013424,2]
[421666683,1778035847000,-500.0,0.00013424,2]
[421666671,1778035847000,-1550.39,0.00013424,2]
[421666657,1778035847000,-2815.78,0.00013424,2]
[421666679,1778035847000,-500.0,0.00013424,2]
[421666665,1778035847000,-500.0,0.00013424,2]
[421666667,1778035847000,-1696.49,0.00013424,2]
[421666681,1778035847000,-946.28,0.00013424,2]
[421666685,1778035847000,-500.0,0.00013424,2]
[421666687,1778035847000,-500.0,0.00013424,2]
[421666596,1778035847000,-500.0,0.00013424,2]
[421666691,1778035847000,-1868.57,0.00013424,2]
[421666693,1778035847000,-318.57270048,0.00013424,2]
[421666669,1778035847000,-1445.21,0.00013424,2]
[421666646,1778035847000,-23.21375554,0.00013424,2]
[421666689,1778035847000,-518.55,0.00013424,2]
[421666626,1778035847000,-688.64,0.00013424,2]
[421666644,1778035847000,-500.0,0.00013424,2]
[421666611,1778035847000,-718.39,0.00013424,2]
[421666615,1778035847000,-500.0,0.00013424,2]
[421666600,1778035847000,-393.47174753,0.00013424,2]
[421666605,1778035847000,-500.0,0.00013424,2]
[421666618,1778035847000,-500.0,0.00013424,2]
[421666620,1778035847000,-377.46073415,0.00013424,2]
[421666622,1778035847000,-1221.66926585,0.00013424,2]
[421666598,1778035847000,-606.18,0.00013424,2]
[421666603,1778035847000,-106.52825247,0.00013424,2]
[421666624,1778035847000,-396.29986815,0.00013424,2]
[421666634,1778035847000,-523.02,0.00013424,2]
[421666636,1778035847000,-500.0,0.00013424,2]
[421666640,1778035847000,-394.29822997,0.00013424,2]
[421666628,1778035847000,-229.14345141,0.00013424,2]
[421666642,1778035847000,-338.56345079,0.00013424,2]
[421666638,1778035847000,-1429.2,0.00013424,2]
[421666630,1778035847000,-270.85654859,0.00013424,2]
[421666632,1778035847000,-500.0,0.00013424,2]
[421670561,1778035890000,152.0,8.01e-05,7]
[421670564,1778036211000,152.0,8.007e-05,7]
[421670565,1778036212000,152.0,8.01e-05,7]
[421670566,1778036235000,152.0,8.009e-05,7]
[421670567,1778036235000,152.0,8.009e-05,7]
[421670780,1778036795000,152.0,8.01e-05,7]
[421670829,1778037034000,-915.70965651,0.00010051,2]
[421670831,1778037034000,-1567.14776848,0.00010153,2]
[421670839,1778037034000,-358.66542532,0.00010308,2]
[421670848,1778037034000,-300.0,0.00012034,2]
[421670837,1778037034000,-3432.85223152,0.00010153,2]
[421670843,1778037034000,-316.0,0.00011753,3]
[421670840,1778037034000,-205.91,0.00011342,2]
[421670862,1778037034000,-500.0,0.00012128,2]
[421670846,1778037034000,-1019.69,0.00012,2]
[421670850,1778037034000,-300.0,0.00012035,2]
[421670852,1778037034000,-300.0,0.00012035,2]
[421670854,1778037034000,-300.0,0.00012035,2]
[421670856,1778037034000,-2262.96448172,0.00012128,2]
[421670866,1778037034000,-679.23543468,0.00012128,2]
[421670859,1778037034000,-2719.4386483,0.00012128,2]
[421670844,1778037034000,-1200.0,0.00011999,2]
[421671084,1778037038000,-500.0,0.00012327,2]
[421671063,1778037038000,-500.0,0.00012327,2]
[421671061,1778037038000,-423.22520188,0.00012308,2]
[421671065,1778037038000,-433.87755122,0.00012327,2]
[421671060,1778037038000,-160.0,0.00012271,2]
[421671058,1778037038000,-160.0,0.00012271,2]
[421671055,1778037038000,-205.91,0.00012246,2]
[421671050,1778037038000,-32508.39780902,0.00012128,2]
[421671051,1778037038000,-161.57016804,0.00012156,2]
[421671053,1778037038000,-500.0,0.00012227,2]
[421671048,1778037038000,-5687.01231921,0.00012128,2]
[421671041,1778037038000,-4907.04282915,0.00012128,2]
[421671039,1778037038000,-5000.0,0.00012007,2]
[421671080,1778037038000,-500.0,0.00012327,2]
[421671066,1778037038000,-189.55371523,0.00012327,2]
[421671082,1778037038000,-500.0,0.00012327,2]
[421671103,1778037038000,-500.0,0.00012327,2]
[421671086,1778037038000,-500.0,0.00012327,2]
[421671094,1778037038000,-450.0,0.00012327,2]
[421671120,1778037038000,-611.76823503,0.00012327,2]
[421671116,1778037038000,-500.0,0.00012327,2]
[421671105,1778037038000,-500.0,0.00012327,2]
[421671099,1778037038000,-500.95359132,0.00012327,2]
[421671122,1778037038000,-500.0,0.00012327,2]
[421671113,1778037038000,-500.0,0.00012327,2]
[421671118,1778037038000,-500.0,0.00012327,2]
[421671111,1778037038000,-436.0709794,0.00012327,2]
[421671109,1778037038000,-500.0,0.00012327,2]
[421671107,1778037038000,-500.0,0.00012327,2]
[421671097,1778037038000,-500.0,0.00012327,2]
[421671093,1778037038000,-500.0,0.00012327,2]
[421671090,1778037038000,-500.0,0.00012327,2]
[421671101,1778037038000,-500.0,0.00012327,2]
[421671088,1778037038000,-500.0,0.00012327,2]
[421671206,1778037039000,-500.0,0.00012328,2]
[421671218,1778037039000,-500.0,0.00012328,2]
[421671220,1778037039000,-500.0,0.00012328,2]
[421671203,1778037039000,-500.0,0.00012328,2]
[421671214,1778037039000,-659.62,0.00012328,2]
[421671197,1778037039000,-500.0,0.00012328,2]
[421671196,1778037039000,-500.0,0.00012328,2]
[421671182,1778037039000,-500.0,0.00012328,2]
[421671184,1778037039000,-500.0,0.00012328,2]
[421671193,1778037039000,-500.0,0.00012328,2]
[421671200,1778037039000,-151.55326228,0.00012328,2]
[421671216,1778037039000,-500.0,0.00012328,2]
[421671202,1778037039000,-500.0,0.00012328,2]
[421671240,1778037039000,-500.0,0.00012328,2]
[421671210,1778037039000,-500.0,0.00012328,2]
[421671208,1778037039000,-500.0,0.00012328,2]
[421671224,1778037039000,-1446.31,0.00012328,2]
[421671228,1778037039000,-500.0,0.00012328,2]
[421671230,1778037039000,-500.0,0.00012328,2]
[421671226,1778037039000,-500.0,0.00012328,2]
[421671191,1778037039000,-500.0,0.00012328,2]
[421671232,1778037039000,-500.0,0.00012328,2]
[421671234,1778037039000,-500.0,0.00012328,2]
[421671242,1778037039000,-500.0,0.00012328,2]
[421671238,1778037039000,-500.0,0.00012328,2]
[421671236,1778037039000,-626.67,0.00012328,2]
[421671244,1778037039000,-722.65,0.00012328,2]